Cogmind - Beta 16.1 *** ADVENTURER MODE // 2026.02.10 @ 14:09:08 Player: Jefffff Result: Destroyed by G-34 Mercenary with Small Laser Performance ------------- Evolutions (0) 0 Regions Visited (2) 400 Robots Destroyed (8) 40 Value Destroyed (176) 176 Prototype IDs (0) 0 Alien Tech Used (0) 0 Bonus (0) 0 TOTAL SCORE: 616 Bonus ------- None Cogmind --------- Core Integrity 0/250 Matter 285/300 Energy 100/100 System Corruption 0% Temperature Cool (6) Movement Walking (120) Location -10/Mines Parts ------- > --- POWER (1) -------- (None) > --- PROPULSION (2) --- Aluminum Leg > --- UTILITY (2) ------ Small Storage Unit Targeting Computer > --- WEAPON (2) ------- Light Assault Rifle Light Assault Rifle > --- INVENTORY (8) ---- Aluminum Leg Improved Heat Sink Targeting Computer Targeting Computer Peak State ------------ > --- POWER ------------ Light Ion Engine > --- PROPULSION ------- Aluminum Leg Aluminum Leg > --- UTILITY ---------- Small Storage Unit Targeting Computer > --- WEAPON ----------- Assault Rifle Light Assault Rifle > --- INVENTORY -------- Aluminum Leg Aluminum Leg Aluminum Leg Improved Heat Sink Targeting Computer Targeting Computer Targeting Computer Grenade Launcher [Rating: 8] Favorites ----------- Power Light Ion Engine Engine Light Ion Engine Propulsion Aluminum Leg Leg Aluminum Leg Utility Small Storage Unit Storage Small Storage Unit Processor Targeting Computer Weapon Light Assault Rifle Ballistic Gun Light Assault Rifle Launcher Grenade Launcher Build | -11 -10 -10 ------- Run | Yrd Mat Min Slots Evolved . | . . . Power . | . . . Propulsion . | . . . Utility . | . . . Weapon . | . . . Parts Attached 14 | 6 1 7 Power 2 | 1 . 1 Engine 2 | 1 . 1 Core . | . . . Reactor . | . . . Propulsion 4 | 2 . 2 Treads . | . . . Leg 4 | 2 . 2 Wheel . | . . . Hover . | . . . Flight . | . . . Utility 3 | 1 1 1 Device . | . . . Storage 1 | 1 . . Processor 2 | . 1 1 Hackware . | . . . Protection . | . . . Artifact . | . . . Weapon 5 | 2 . 3 Energy Gun . | . . . Energy Cannon . | . . . Ballistic Gun 4 | 2 . 2 Ballistic Cannon . | . . . Launcher 1 | . . 1 Special Weapon . | . . . Impact Weapon . | . . . Slashing Weapon . | . . . Piercing Weapon . | . . . Special Melee Weapon . | . . . Unidentified Prototypes . | . . . Parts Lost 9 | . . 9 Power 2 | . . 2 Propulsion 3 | . . 3 Utility 1 | . . 1 Weapon 3 | . . 3 Highest Loss Streak 4 | . . 4 To Critical Strikes . | . . . Average Backups 4 | . . 5 Power . | . . . Propulsion 1 | . . 2 Utility 2 | . . 3 Weapon . | . . . Tool/Special . | . . . Unused Backups 4 | . . 4 Power . | . . . Propulsion 1 | . . 1 Utility 3 | . . 3 Weapon . | . . . Tool/Special . | . . . Average Slot Usage (%) 79 | . 87 76 Engine 5 | . 14 2 Leg 26 | . 28 26 Storage 14 | . 14 14 Processor 11 | . 2 14 Ballistic Gun 18 | . 28 15 Launcher 2 | . . 2 Peak Build Rating 8 | 6 7 8 Average Rating 5 | 4 6 5 On Entrance 4 | . 6 7 Avg Prop Armor Cover (%) . | . . . Naked Turns . | . . . Heaviest Build 11 | 11 11 11 Greatest Support 20 | 20 20 20 Greatest Overweight (x) . | . . . Average Overweight (x) . | . . . Largest Inventory Capacity 8 | 8 8 8 Average Capacity 7 | 7 8 8 Most Carried 8 | 4 4 8 Average Carried 4 | . 1 5 Final Capacity 8 | 8 8 8 Final Carried 4 | . 4 4 Class Distribution -------------------- 90% | Mutant 9% | Scavenger-Mutant Dominant Class ---------------- Mutant | -10/Materials Mutant | -10/Mines Resources | -11 -10 -10 ----------- Run | Yrd Mat Min Matter Collected 474 | 117 . 357 Remotely . | . . . Salvage Created 271 | . . 271 Parts 15 | . . 15 Haulers Intercepted . | . . . Recyclers Shooed . | . . . Parts Field Recycled . | . . . Retrieved Matter . | . . . Parts Self-Destructed . | . . . Prevented . | . . . Parts Restored . | . . . Kills | -11 -10 -10 ------- Run | Yrd Mat Min Combat Hostiles Destroyed 16 | . . 16 Guns 8 | . . 8 AOE 8 | . . 8 Classes Destroyed 5 | . . 5 Worker 1 | . . 1 Tunneler 1 | . . 1 Swarmer 3 | . . 3 Grunt 3 | . . 3 Assembled 10 | . . 10 Best Kill Streak 10 | . . 10 Combat Bots Only 9 | . . 9 Max Kills in Single Turn 2 | . . 2 Gunslinging 1 | . . 1 Exploded 1 | . . 1 Melee . | . . . Uniques/NPCs Destroyed . | . . . Combat | -11 -10 -10 -------- Run | Yrd Mat Min Hostile Shots Fired 117 | . . 117 Missed 35 | . . 35 Hits 82 | . . 82 Melee 9 | . . 9 Projectile 73 | . . 73 Critical Strikes 3 | . . 3 Part Disruptions 1 | . . 1 Damage Taken 1018 | . 24 994 Core 257 | . . 257 Absorbed by Shields . | . . . Ignored by Resistances 301 | . 7 294 Core Remaining (%) 100 | 100 . . Volleys Fired 46 | . . 46 Largest 2 | . . 2 Hottest 40 | . . 40 Shots Fired 74 | . . 74 Gun 62 | . . 62 Cannon . | . . . Launcher 12 | . . 12 Special . | . . . Kinetic 62 | . . 62 Thermal . | . . . Explosive 12 | . . 12 Electromagnetic . | . . . Robot Hit Streak 14 | . . 14 Robot Miss Streak 2 | . . 2 Penetration Max . | . . . Secondary Targets 2 | . . 2 Max Gunslinging Chain 1 | . . 1 Shots Hit Robots 52 | . . 52 Core Hits 37 | . . 37 Critical Kills . | . . . Critical Parts Destroyed . | . . . Critical Strikes . | . . . Melee Attacks . | . . . Impact . | . . . Slashing . | . . . Piercing . | . . . Sneak Attacks . | . . . Combat Hostiles . | . . . Follow-up Attacks . | . . . Damage Inflicted 915 | . . 915 Guns 414 | . . 414 Cannons . | . . . Explosions 482 | . . 482 Melee . | . . . Ramming 19 | . . 19 Kinetic 414 | . . 414 Thermal . | . . . Explosive 482 | . . 482 Electromagnetic . | . . . Impact . | . . . Slashing . | . . . Piercing . | . . . Highest Corruption . | . . . Average Corruption . | . . . Corruption Purged . | . . . Corruption Blocked . | . . . Overload Shots . | . . . Overflow Damage . | . . . Projectiles . | . . . Explosions . | . . . Melee . | . . . Knockbacks . | . . . Impact . | . . . Kinetic . | . . . Secondary . | . . . Self-Inflicted Damage 55 | . . 55 Shots 3 | . . 3 Rammed . | . . . Targets Rammed 6 | . . 6 Kicked 6 | . . 6 Crushed . | . . . Highest Temperature 33 | . . 33 Average Temperature 10 | . . 10 Received Heat Transfer 305 | . . 305 Siege Activations . | . . . Martial Activations . | . . . Shielding Activations . | . . . Robots Disrupted . | . . . Combat Hostiles . | . . . Robots Corrupted . | . . . Combat Hostiles . | . . . Parts Fried . | . . . Impact Corruptions . | . . . Robots Melted . | . . . Combat Hostiles . | . . . Parts Melted . | . . . Heat Transferred . | . . . Parts Sabotaged . | . . . Parts Stolen . | . . . Parts Stripped . | . . . Power Chain Reactions . | . . . Alert | -11 -10 -10 ------- Run | Yrd Mat Min Maximum Alert Level . | . . . Low Security (%) 100 | 100 100 100 Level 1 . | . . . Level 2 . | . . . Level 3 . | . . . Level 4 . | . . . Level 5 . | . . . High Security . | . . . Max Security . | . . . Peak Influence 95 | . . 95 Initial . | . . . Average 20 | . . 30 Influence Increases 217 | . . 217 Destroy 0b10 Robot/C 120 | . . 120 Destroy 0b10 Robot/NC 10 | . . 10 Destroy Leader 30 | . . 30 Disable Machine 9 | . . 9 Destroy Structure 48 | . . 48 Influence Decreases 197 | . . 197 Time Decay 140 | . . 140 Lost Part 57 | . . 57 Squads Dispatched . | . . . Investigation . | . . . Extermination . | . . . Reinforcement . | . . . Assault . | . . . Garrison . | . . . Intercept . | . . . Searches Triggered . | . . . Construction Impeded . | . . . Haulers Reinforced . | . . . Active Scanning Responses . | . . . Cargo Convoy Interrupts . | . . . Stealth | -11 -10 -10 --------- Run | Yrd Mat Min Distress Signals . | . . . Communications Jammed . | . . . Distress Signals . | . . . Times Spotted 22 | . . 22 Peak Tracking Total 8 | . 1 8 Tactical Retreats 5 | . . 5 Traps | -11 -10 -10 ------- Run | Yrd Mat Min Traps Triggered 1 | . 1 . Indirectly . | . . . Trap Hack Attempts . | . . . Triggered . | . . . Disarmed . | . . . Reprogrammed . | . . . Reused . | . . . Traps Extracted . | . . . Installed . | . . . Triggered . | . . . Machines | -11 -10 -10 ---------- Run | Yrd Mat Min Machines Disabled 1 | . . 1 Max in Single Turn 1 | . . 1 Machines Repaired . | . . . Machines Dismantled . | . . . Machines Sabotaged . | . . . Overloaded Fab Kills . | . . . Hacking | -11 -10 -10 --------- Run | Yrd Mat Min Machines Accessed . | . . . Terminals . | . . . Fabricators . | . . . Repair Stations . | . . . Recycling Units . | . . . Scanalyzers . | . . . Garrison Access . | . . . Total Hacks . | . . . Successful . | . . . Failed . | . . . Catastrophic . | . . . Database Lockouts . | . . . Manual . | . . . Terminals . | . . . Fabricators . | . . . Repair Stations . | . . . Recycling Units . | . . . Scanalyzers . | . . . Garrison Access . | . . . Terminal Hacks . | . . . Fabricator Hacks . | . . . Repair Station Hacks . | . . . Recycling Unit Hacks . | . . . Scanalyzer . | . . . Garrison Access Hacks . | . . . Unauthorized Hacks . | . . . Terminals . | . . . Fabricators . | . . . Repair Stations . | . . . Recycling Units . | . . . Scanalyzers . | . . . Garrison Access . | . . . Data Cores Recovered . | . . . Used . | . . . Hacking Detections . | . . . Full Trace Events . | . . . Feedback Events . | . . . Feedback Blocked . | . . . Robot Schematics Acquired . | . . . Robots Built . | . . . Authchips . | . . . Time . | . . . Total Robot Build Rating . | . . . Part Schematics Acquired . | . . . Parts Built . | . . . Authchips . | . . . Time . | . . . Total Part Build Rating . | . . . Part Studies Acquired . | . . . Parts Repaired . | . . . Time . | . . . Parts Recycled . | . . . Recycled Matter . | . . . Retrieved Matter . | . . . Retrieved Components . | . . . Parts Scanalyzed . | . . . Part Schematics Acquired . | . . . Parts Damaged . | . . . Bothacking | -11 -10 -10 ------------ Run | Yrd Mat Min Used RIF Installer . | . . . Robots Hacked . | . . . Non-combat . | . . . Combat . | . . . Robot Hacks Applied . | . . . Relay Couplers Released . | . . . Fabnet Peak Effective % . | . . . Robots Rewired . | . . . Allies Hacked . | . . . Hacks Repelled . | . . . Allies | -11 -10 -10 -------- Run | Yrd Mat Min Total Allies . | . . . Largest Group . | . . . Highest-Rated Group . | . . . Highest-Rated Ally . | . . . Total Orders . | . . . Ally Attacks . | . . . Total Damage . | . . . Kills . | . . . Allies Corrupted . | . . . Allies Melted . | . . . Intel | -11 -10 -10 ------- Run | Yrd Mat Min Active Infowar (turns) . | . . . Robot Analysis Total . | . . . Derelict Logs Recovered 1 | . . 1 Drone Launches . | . . . Drone Recoveries . | . . . Exploration | -11 -10 -10 ------------- Run | Yrd Mat Min Turns Passed 552 | 80 105 367 Spaces Moved 343 | 64 83 196 Core 11 | 11 . . Treads . | . . . Legs 332 | 53 83 196 Wheels . | . . . Hover . | . . . Flight . | . . . Fastest Speed 50 | 50 120 120 Average Speed 117 | 107 120 120 Slowest Speed 120 | 120 120 120 Overloaded Moves . | . . . Propulsion Burnouts . | . . . Robots Hopped . | . . . Potential Cave-ins . | . . . Cave-ins Triggered . | . . . Exploration Rate (%) 21 | 3 17 44 Regions Visited 2 Branch Regions 1 Pre-discovered Areas . | . . . Known Exits Taken . | . . . Unknown Exits Taken 2 | 1 1 . Scrap Searched . | . . . Spaces Dug . | . . . Terrain Destroyed 82 | . . 82 Melee . | . . . Projectile . | . . . AOE 82 | . . 82 Terrain Rammed . | . . . Walls Destroyed . | . . . Machines Disabled . | . . . Actions | -11 -10 -10 --------- Run | Yrd Mat Min Total 424 | 75 88 261 Wait 2 | . . 2 Move 341 | 63 82 196 Hop . | . . . Pick Up 15 | 6 5 4 Fast Attach 3 | . . 3 Attach 11 | 6 1 4 Detach . | . . . Swap . | . . . Drop . | . . . Fire 46 | . . 46 Melee . | . . . Ram . | . . . Kick 6 | . . 6 Crush . | . . . Escape Stasis . | . . . Rewire . | . . . Trap . | . . . Miscellaneous . | . . . Route ------- -11/Scrapyard -10/Materials -10/Mines History --------- Turn | Location | Event 7 | -11/Scrapyard | Discovered new exit (range 16) 81 | -11/Scrapyard | Entered Materials 123 | -10/Materials | Discovered new exit (range 9) 186 | -10/Materials | Entered Mines 221 | -10/Mines | Met a Derelict bent on vengeance 264 | -10/Mines | Assembled infested the area 280 | -10/Mines | Learned Materials non-interactive machine intel 315 | -10/Mines | Build established: Mutant 365 | -10/Mines | Lost 4 parts (1p1u2w) 421 | -10/Mines | Destroyed 9 combat bots 454 | -10/Mines | Core integrity fell below 50% 484 | -10/Mines | Core integrity fell below 20% 553 | -10/Mines | Destroyed by G-34 Mercenary with Small Laser Last Messages --------------- 00448_ Kicked as-21871. 00449_ Acquired 12 matter. 00449_ Aluminum Leg destroyed. 00450_ U-05 Engineer destroyed. 00450_ Kicked as-21871. 00451_ Extracted 100 matter. 00457_ Acquired 30 matter. 00462_ The unstable cave ceiling collapses. 00462_ Terrain Scan Processor crushed. 00471_ The unstable cave ceiling collapses. 00476_ Aluminum Leg destroyed. 00481_ Kicked as-91540. 00482_ Kicked as-91540 out of the way. 00484_ The unstable cave ceiling collapses. 00487_ Acquired 17 matter. 00495_ Acquired Lgt. Assault Rifle. 00509_ as-91540 destroyed. 00514_ Acquired 27 matter. 00539_ Aluminum Leg destroyed. 00541_ G-47 Trooper destroyed. Map ----- +----------------------------------------------------+ | | | | | | | | | | | | | | | | | | | | | | | | | | | | | | | | | | | | | | | ??????????????????????????????????????????????? | | ??????????????????????????????????????????????? | | ??????????????????????????????????????????????? | | ??????????????????????????????????????????????? | | ????????# ????????????????????????????????#### | | ????????# #######??????????????????## # | | ????????# =g= @#??????????????????# | | ????????# ##### #??????????????????# | | ????????# ???????#### #??????????????##### | | ??????????????????# #??????????????# | | ??????????????????# ##!#??????????????# ## | | ??????????????????#??# #??????????????# ## | | ?????????????????????# #??????????????# ### | | ?????????????????????#=#?????###??????# #?## | | ?????????????????????#%#??#### #####?## ##?# | | ?????????????????????#!#??# #?# #?## | | ?????????????????????#!#?## ## ### #??# # | | ?????????????????????#!### ## ##?# # | | ???????????????????###%## #?# # | | ???????????????????# !*= # "# ### #?# | | ??????????????????## ###### ##### | | ??????????????# ### ##?## # # | | ??????????????# ####=#?## ######??# #! ## | | ???????????????????#%##### #???????# # ### | | ???????????????????# [ ## #???????# # = ! | | ??????????????????## ### #####???????## | | ?????????????????##[=%## #????????????# # # | | ????????????????## ## #####????????### | | ????????????????# ### #?????????## ## | | ????????????????# ####### #????????### ### | | ????????????????# ##???# #???????## ##### | +----------------------------------------------------+ Best States ------------- Heat Dissipation 25 Energy Generation 10 Energy Capacity 125 Matter Stores 300 Matter Capacity 300 Sight Range 16 Terrain Scan Density 10 Resistance: KI 20 Resistance: TH 20 Resistance: EX 20 Resistance: EM 20 Resistance: I 20 Resistance: S 20 Resistance: P 20 Evasion (%) 55 Targeting Accuracy 5 Offensive Hacking 10 Item Schematics ----------------- None Robot Schematics ------------------ None Fabricated ------------ Nothing Repaired ---------- Nothing Studied --------- None Alien Tech Used ----------------- None Achievements -------------- None Challenges ------------ None Game ------ Seed AerolevCryofiberSplitter Manual? 0 Play Time 00:05:26 Cumulative 267.5 hours Start 2026.02.10 @ 14:04:16 End 2026.02.10 @ 14:09:08 Sessions 1 Manual Loads 0 Difficulty Adventurer Special Mode None Game No. 312 Rogue 0 Adventurer 312 Explorer 0 Win Type - Total 0 Types 0/0/0/0/0/0/0/0/0/0 Lore% 73 Gallery% 57 Achievement% 35 Wizard Run 0 Options --------- Layout 2 ASCII 0 Keyboard 0 Movement Mouse Keybinds 0 Fullscreen 2 Font 48/Smallcaps Map View 50x44 Zoom Use 0% Tactical HUD 1 Map Filters NONE Filters NONE Steam 1 RUN: 18983b45-05e5-4c82-a1da-fdbfdec14d39